bitfinex/quotes_SOLUSD_20241103
["timestamp","ask_amount","ask_price","bid_price","bid_amount"]
[1730593080676,11.10688219,166.35,166.31,23.776884]
[1730593080883,11.10688219,166.36,166.31,23.776884]
[1730593082979,11.10688219,166.36,166.31,34.88376619]
[1730593083687,11.10688219,166.38,166.33,34.88376619]
[1730593084177,11.10688219,166.36,166.34,23.776884]
[1730593084755,11.10688219,166.37,166.34,23.776884]
[1730593086075,11.10688219,166.36,166.34,23.776884]
[1730593098386,11.10688219,166.35,166.31,11.10688219]
[1730593098564,11.10688219,166.33,166.3,16.3851]
[1730593098884,11.10688219,166.31,166.26,27.62008219]
[1730593099066,11.10688219,166.32,166.27,11.10688219]
[1730593100186,11.10688219,166.32,166.21,0.2]
[1730593100187,11.10688219,166.29,166.24,11.10688219]
[1730593100363,11.10688219,166.28,166.23,11.10688219]
[1730593100571,11.10688219,166.29,166.24,11.10688219]
[1730593101571,11.10688219,166.29,166.25,43.776884]
[1730593102986,6.0128,166.32,166.25,43.776884]
[1730593103164,11.10688219,166.28,166.25,23.776884]
[1730593103363,11.10688219,166.28,166.24,23.776884]
[1730593103566,11.10688219,166.29,166.24,11.10688219]
[1730593103782,11.10688219,166.29,166.25,23.776884]
[1730593104086,11.10688219,166.28,166.25,23.776884]
[1730593104489,11.10688219,166.27,166.25,23.776884]
[1730593105476,11.10688219,166.27,166.24,23.776884]
[1730593106883,6.0132,166.31,166.22,16.5132]
[1730593106884,11.10688219,166.25,166.22,23.776884]
[1730593107070,11.10688219,166.26,166.21,34.88376619]
[1730593107665,11.10688219,166.28,166.24,23.776884]
[1730593108670,11.10688219,166.27,166.24,23.776884]
[1730593108993,11.10688219,166.26,166.24,23.776884]
[1730593110481,11.10688219,166.25,166.24,23.776884]
[1730593110790,11.10688219,166.27,166.24,23.776884]
[1730593111291,11.10688219,166.27,166.23,23.776884]
[1730593118789,11.10688219,166.26,166.23,23.776884]
[1730593119109,11.10688219,166.26,166.22,43.776884]
[1730593120572,11.10688219,166.25,166.22,43.776884]
[1730593124174,11.10688219,166.23,166.14,27.02804629]
[1730593124476,11.10688219,166.19,166.14,27.02804629]
[1730593124688,11.10688219,166.2,166.15,11.10688219]
[1730593124878,11.10688219,166.21,166.16,11.10688219]
[1730593125393,11.10688219,166.23,166.17,11.10688219]
[1730593125894,11.10688219,166.24,166.19,31.10688219]
[1730593126095,11.10688219,166.24,166.19,11.10688219]
[1730593126483,11.10688219,166.24,166.2,23.776884]
[1730593127404,11.10688219,166.21,166.15,31.10688219]
[1730593127693,11.10688219,166.19,166.14,27.02804629]
[1730593128084,44.42752876,166.24,166.14,27.02804629]
[1730593128085,11.10688219,166.2,166.14,27.02804629]
[1730593128290,11.10688219,166.2,166.15,11.10688219]
[1730593128904,11.10688219,166.2,166.16,23.776884]
[1730593129682,11.10688219,166.2,166.15,23.776884]
[1730593129883,11.10688219,166.19,166.16,20.0]
[1730593130285,11.10688219,166.18,166.15,20.0]
[1730593130484,11.10688219,166.17,166.15,20.0]
[1730593130801,11.10688219,166.21,166.16,11.10688219]
[1730593130991,11.10688219,166.22,166.16,11.10688219]
[1730593131393,11.10688219,166.22,166.17,23.776884]
[1730593131586,6.016,166.23,166.17,23.776884]
[1730593131587,11.10688219,166.21,166.17,23.776884]
[1730593132884,11.10688219,166.19,166.17,23.776884]
[1730593133186,11.10688219,166.19,166.16,23.776884]
[1730593135488,11.10688219,166.18,166.16,23.776884]
[1730593137697,11.10688219,166.2,166.16,23.776884]
[1730593138198,11.10688219,166.19,166.16,23.776884]
[1730593139409,11.10688219,166.2,166.16,23.776884]
[1730593141006,11.10688219,166.21,166.16,34.88376619]
[1730593141404,11.10688219,166.2,166.16,23.776884]
[1730593143795,11.10688219,166.19,166.16,23.776884]
[1730593144509,11.10688219,166.2,166.16,23.776884]
[1730593145901,11.10688219,166.22,166.16,34.88376619]
[1730593147501,11.10688219,166.21,166.16,23.776884]
[1730593148623,11.10688219,166.2,166.16,23.776884]
[1730593149317,44.42752876,166.24,166.16,23.776884]
[1730593149318,11.10688219,166.19,166.16,23.776884]
[1730593150920,11.10688219,166.2,166.16,23.776884]
[1730593152424,11.10688219,166.19,166.16,23.776884]
[1730593154218,11.10688219,166.2,166.16,23.776884]
[1730593156016,11.10688219,166.22,166.16,34.88376619]
[1730593156229,11.10688219,166.22,166.18,23.776884]
[1730593156625,11.10688219,166.22,166.17,23.776884]
[1730593157728,11.10688219,166.22,166.18,23.776884]
[1730593159327,11.10688219,166.22,166.17,43.776884]
[1730593159636,11.10688219,166.2,166.17,43.776884]
[1730593163630,11.10688219,166.19,166.17,23.776884]
[1730593164315,6.016,166.23,166.15,20.0]
[1730593164518,11.10688219,166.17,166.15,20.0]
[1730593164848,11.10688219,166.17,166.14,0.3082641]
[1730593166248,11.10688219,166.17,166.14,24.0851481]
[1730593166739,11.10688219,166.18,166.14,24.0851481]
[1730593168641,11.10688219,166.17,166.14,24.0851481]
[1730593169523,11.10688219,166.15,166.14,0.3082641]
[1730593170041,11.10688219,166.16,166.14,0.3082641]
[1730593174926,11.10688219,166.18,166.14,0.3082641]
[1730593175133,11.10688219,166.18,166.14,24.0851481]
[1730593176740,11.10688219,166.19,166.14,35.19203029]
[1730593177117,11.10688219,166.2,166.16,23.776884]
[1730593177320,11.10688219,166.21,166.16,23.776884]
[1730593178943,11.10688219,166.2,166.16,23.776884]
[1730593179632,11.10688219,166.19,166.15,23.776884]
[1730593180643,11.10688219,166.18,166.15,23.776884]
[1730593180943,11.10688219,166.19,166.14,35.19203029]
[1730593187737,11.10688219,166.2,166.14,35.19203029]
[1730593189337,11.10688219,166.19,166.14,35.19203029]
[1730593189741,11.10688219,166.16,166.14,0.3082641]
[1730593189928,11.10688219,166.15,166.14,0.3082641]
[1730593192654,11.10688219,166.18,166.14,0.3082641]
[1730593192855,11.10688219,166.19,166.14,11.41514629]
[1730593194055,11.10688219,166.18,166.14,20.3082641]
[1730593194631,28.0872,166.21,166.14,20.3082641]
[1730593194632,11.10688219,166.17,166.14,20.3082641]
[1730593194838,11.10688219,166.18,166.15,23.776884]
[1730593197749,11.10688219,166.19,166.15,23.776884]
[1730593197956,11.10688219,166.2,166.15,34.88376619]
[1730593200744,11.10688219,166.18,166.15,23.776884]
[1730593202770,11.10688219,166.19,166.15,23.776884]
[1730593203435,11.10688219,166.2,166.15,23.776884]
[1730593207955,11.10688219,166.19,166.15,23.776884]
[1730593208165,11.10688219,166.2,166.15,34.88376619]
[1730593208673,11.10688219,166.22,166.18,20.0]
[1730593208840,11.10688219,166.22,166.19,23.776884]
[1730593209043,28.0858,166.25,166.19,23.776884]
[1730593209248,11.10688219,166.22,166.19,23.776884]
[1730593210665,11.10688219,166.23,166.19,23.776884]
[1730593211165,11.10688219,166.22,166.19,23.776884]
[1730593215471,11.10688219,166.23,166.19,23.776884]
[1730593217552,11.10688219,166.22,166.19,23.776884]
[1730593219476,11.10688219,166.23,166.19,23.776884]
[1730593224871,11.10688219,166.23,166.18,11.10688219]
[1730593224872,11.10688219,166.21,166.18,20.0]
[1730593225479,11.10688219,166.19,166.15,15.8264]
[1730593225681,44.42752876,166.24,166.14,24.0851481]
[1730593225682,11.10688219,166.18,166.14,24.0851481]
[1730593225878,11.10688219,166.18,166.14,0.3082641]
[1730593226754,11.10688219,166.18,166.14,20.3082641]
[1730593227274,11.10688219,166.18,166.16,20.0]
[1730593227676,11.10688219,166.19,166.16,20.0]
[1730593229072,11.10688219,166.17,166.14,0.3082641]
[1730593229258,0.1,166.21,166.14,0.3082641]
[1730593229259,11.10688219,166.15,166.14,0.3082641]
[1730593235684,11.10688219,166.17,166.14,0.3082641]
[1730593235997,11.10688219,166.18,166.14,0.3082641]
[1730593236171,11.10688219,166.17,166.14,0.3082641]
[1730593241774,11.10688219,166.18,166.14,20.3082641]
[1730593246590,11.10688219,166.2,166.15,23.776884]
[1730593247193,11.10688219,166.19,166.15,23.776884]
[1730593254397,11.10688219,166.2,166.15,23.776884]
[1730593254599,11.10688219,166.21,166.15,34.88376619]
[1730593254780,11.10688219,166.21,166.16,31.10688219]
[1730593254977,11.10688219,166.22,166.17,23.776884]
[1730593255986,11.10688219,166.22,166.18,20.0]
[1730593256282,6.0154,166.24,166.18,20.0]
[1730593256283,11.10688219,166.23,166.18,20.0]
[1730593256483,11.10688219,166.22,166.18,20.0]
[1730593259294,11.10688219,166.21,166.18,20.0]
[1730593260581,11.10688219,166.2,166.18,20.0]
[1730593264897,11.10688219,166.21,166.18,20.0]
[1730593265197,11.10688219,166.21,166.17,23.776884]
[1730593266321,11.10688219,166.2,166.17,23.776884]
[1730593266500,11.10688219,166.2,166.15,11.10688219]
[1730593266501,11.10688219,166.19,166.15,23.776884]
[1730593266688,11.10688219,166.19,166.14,24.0851481]
[1730593267187,11.10688219,166.19,166.15,20.0]
[1730593268008,11.10688219,166.2,166.15,31.10688219]
[1730593268320,11.10688219,166.23,166.18,20.0]
[1730593269089,11.10688219,166.22,166.18,20.0]
[1730593269892,11.10688219,166.23,166.18,31.10688219]
[1730593270104,11.10688219,166.25,166.2,11.10688219]
[1730593270395,11.10688219,166.25,166.2,20.0]
[1730593271814,11.10688219,166.25,166.21,23.776884]
[1730593272020,11.10688219,166.27,166.22,31.10688219]
[1730593272318,11.10688219,166.28,166.23,34.88376619]
[1730593273111,11.10688219,166.29,166.24,31.10688219]
[1730593275321,11.10688219,166.28,166.24,20.0]
[1730593276001,11.10688219,166.29,166.24,31.10688219]
[1730593276705,11.10688219,166.28,166.24,20.0]
[1730593277726,11.10688219,166.27,166.24,20.0]
[1730593278716,11.10688219,166.25,166.22,23.776884]
[1730593278923,11.10688219,166.24,166.19,11.10688219]
[1730593279225,11.10688219,166.24,166.2,0.43]
[1730593280121,11.10688219,166.24,166.2,44.206884]
[1730593281126,11.10688219,166.24,166.2,43.776884]
[1730593288106,11.10688219,166.23,166.2,43.776884]
[1730593289527,11.10688219,166.24,166.2,43.776884]
[1730593292410,11.10688219,166.21,166.18,20.0]
[1730593295626,11.10688219,166.2,166.18,20.0]
[1730593296222,11.10688219,166.2,166.17,20.0]
[1730593296430,44.42752876,166.24,166.14,20.3082641]
[1730593296431,11.10688219,166.18,166.14,20.3082641]
[1730593298531,11.10688219,166.21,166.16,31.10688219]
[1730593298743,11.10688219,166.22,166.17,11.10688219]
[1730593299233,11.10688219,166.21,166.16,31.10688219]
[1730593299412,11.10688219,166.21,166.16,20.0]
[1730593301325,11.10688219,166.2,166.16,20.0]
[1730593308026,11.10688219,166.21,166.16,20.0]
[1730593308540,11.10688219,166.22,166.17,11.10688219]
[1730593308737,11.10688219,166.22,166.18,20.0]
[1730593308942,11.10688219,166.23,166.18,31.10688219]
[1730593310038,11.10688219,166.22,166.18,20.0]
[1730593311562,11.10688219,166.21,166.16,31.10688219]
[1730593311842,11.10688219,166.21,166.17,23.776884]
[1730593312040,11.10688219,166.21,166.18,20.0]
[1730593323357,11.10688219,166.22,166.18,20.0]
[1730593324458,11.10688219,166.26,166.2,31.10688219]
[1730593324840,11.10688219,166.25,166.2,31.10688219]
[1730593328038,11.10688219,166.27,166.22,11.10688219]
[1730593328759,11.10688219,166.27,166.22,20.0]
[1730593329146,11.10688219,166.27,166.22,31.10688219]
[1730593331138,11.10688219,166.28,166.22,31.10688219]
[1730593331384,11.10688219,166.27,166.22,31.10688219]
[1730593337355,11.10688219,166.28,166.23,11.10688219]
[1730593337557,11.10688219,166.28,166.24,23.776884]
[1730593341636,11.10688219,166.27,166.24,20.0]
[1730593341843,11.10688219,166.26,166.24,20.0]
[1730593342054,11.10688219,166.26,166.22,23.776884]
[1730593342238,11.10688219,166.26,166.23,20.0]
[1730593342652,11.10688219,166.25,166.22,23.776884]
[1730593342845,11.10688219,166.25,166.21,43.776884]
[1730593345861,11.10688219,166.24,166.21,20.0]
[1730593346065,11.10688219,166.23,166.19,20.0]
[1730593346273,11.10688219,166.23,166.2,23.776884]
[1730593347353,11.10688219,166.24,166.2,23.776884]
[1730593347558,11.10688219,166.25,166.2,34.88376619]
[1730593349978,6.0141,166.28,166.23,20.0]
[1730593349979,11.10688219,166.28,166.23,20.0]
[1730593354854,11.10688219,166.27,166.23,20.0]
[1730593355280,11.10688219,166.26,166.23,20.0]
[1730593355480,11.10688219,166.25,166.21,23.776884]
[1730593355680,11.10688219,166.25,166.22,20.0]
[1730593358367,11.10688219,166.24,166.22,20.0]
[1730593358562,15.4755,166.3,166.19,11.10688219]
[1730593358563,11.10688219,166.23,166.19,20.0]
[1730593358765,11.10688219,166.23,166.21,20.0]
[1730593359069,11.10688219,166.23,166.2,24.206884]
[1730593359374,11.10688219,166.23,166.2,0.43]
[1730593359580,11.10688219,166.23,166.2,20.43]
[1730593359969,11.10688219,166.23,166.2,20.0]
[1730593362061,11.10688219,166.24,166.2,20.0]
[1730593362465,11.10688219,166.25,166.2,20.0]
[1730593365491,11.10688219,166.24,166.2,20.0]
[1730593368184,11.10688219,166.25,166.2,20.0]
[1730593368389,11.10688219,166.25,166.2,31.10688219]
[1730593370087,11.10688219,166.26,166.21,34.88376619]
[1730593370270,11.10688219,166.28,166.22,31.10688219]
[1730593370666,11.10688219,166.27,166.22,20.0]
[1730593370970,11.10688219,166.25,166.22,20.0]
[1730593372968,11.10688219,166.26,166.22,20.0]
[1730593380796,11.10688219,166.26,166.18,16.1448]
[1730593380797,11.10688219,166.24,166.2,23.776884]
[1730593381092,11.10688219,166.23,166.21,20.0]
[1730593382081,11.10688219,166.25,166.21,20.0]
[1730593382384,11.10688219,166.31,166.25,43.776884]
[1730593382585,11.10688219,166.31,166.26,11.10688219]
[1730593382889,11.10688219,166.31,166.27,43.776884]
[1730593384592,11.10688219,166.3,166.27,43.776884]
[1730593387996,11.10688219,166.29,166.25,20.0]
[1730593388193,11.10688219,166.28,166.24,20.0]
[1730593388500,11.10688219,166.29,166.25,23.776884]
[1730593390979,11.10688219,166.28,166.25,23.776884]
[1730593391494,11.10688219,166.28,166.24,20.0]
[1730593391700,11.10688219,166.26,166.22,23.776884]
[1730593391879,11.10688219,166.25,166.2,11.10688219]
[1730593392194,11.10688219,166.25,166.19,15.2007]
[1730593392195,11.10688219,166.23,166.21,0.43]
[1730593392988,11.10688219,166.23,166.19,15.2007]
[1730593393385,11.10688219,166.23,166.19,23.776884]
[1730593394699,11.10688219,166.23,166.2,20.0]
[1730593395601,11.10688219,166.22,166.18,20.0]
[1730593395811,11.10688219,166.21,166.17,20.0]
[1730593396576,11.10688219,166.22,166.18,20.0]
[1730593397600,11.10688219,166.25,166.2,31.10688219]
[1730593397803,11.10688219,166.26,166.21,11.10688219]
[1730593398481,11.10688219,166.25,166.2,31.10688219]
[1730593398687,11.10688219,166.23,166.2,20.0]
[1730593399987,11.10688219,166.24,166.2,20.0]
[1730593401992,11.10688219,166.25,166.2,31.10688219]
[1730593406713,11.10688219,166.24,166.2,20.0]
[1730593418902,15.4767,166.29,166.15,25.4651332]
[1730593418903,11.10688219,166.21,166.16,11.10688219]
[1730593419205,11.10688219,166.19,166.15,25.4651332]
[1730593419397,11.10688219,166.18,166.15,10.2644332]
[1730593420720,11.10688219,166.18,166.16,20.0]
[1730593421111,11.10688219,166.18,166.15,10.2644332]
[1730593422734,11.10688219,166.17,166.15,10.2644332]
[1730593423522,11.10688219,166.16,166.14,0.3082641]
[1730593424713,60.62182876,166.24,166.14,11.41514629]
[1730593424927,11.10688219,166.21,166.15,31.10688219]
[1730593425253,11.10688219,166.22,166.16,11.10688219]
[1730593425609,11.10688219,166.22,166.17,11.10688219]
[1730593426232,11.10688219,166.22,166.17,20.0]
[1730593426925,11.10688219,166.23,166.17,31.10688219]
[1730593427712,11.10688219,166.24,166.18,11.10688219]
[1730593428426,11.10688219,166.23,166.18,11.10688219]
[1730593429434,11.10688219,166.24,166.19,31.10688219]
[1730593429736,11.10688219,166.25,166.2,11.10688219]
[1730593429943,11.10688219,166.26,166.21,20.0]
[1730593430430,11.10688219,166.26,166.21,31.10688219]
[1730593430629,11.10688219,166.24,166.21,20.0]
[1730593430830,11.10688219,166.23,166.19,43.776884]
[1730593431838,11.10688219,166.24,166.19,54.88376619]
[1730593433033,11.10688219,166.25,166.2,11.10688219]
[1730593433236,11.10688219,166.25,166.19,43.776884]
[1730593433237,11.10688219,166.25,166.19,54.88376619]
[1730593433439,11.10688219,166.26,166.2,11.10688219]
[1730593433634,11.10688219,166.26,166.21,11.10688219]
[1730593434837,11.10688219,166.26,166.22,20.0]
[1730593440117,11.10688219,166.28,166.23,11.10688219]
[1730593444330,11.10688219,166.26,166.21,11.10688219]
[1730593444538,11.10688219,166.25,166.22,20.0]
[1730593444951,11.10688219,166.26,166.22,20.0]
[1730593445555,11.10688219,166.27,166.22,31.10688219]
[1730593450453,68.17240811,166.32,166.22,31.10688219]
[1730593450454,11.10688219,166.29,166.24,20.0]
[1730593450955,11.10688219,166.31,166.25,11.10688219]
[1730593451134,11.10688219,166.3,166.25,11.10688219]
[1730593453145,11.10688219,166.3,166.24,31.10688219]
[1730593453355,11.10688219,166.28,166.25,23.776884]
[1730593453543,60.43532876,166.32,166.23,20.0]
[1730593453544,11.10688219,166.26,166.23,20.0]
[1730593455658,11.10688219,166.26,166.22,20.0]
[1730593458940,11.10688219,166.24,166.2,20.0]
[1730593459655,6.2128,166.31,166.2,31.10688219]
[1730593459656,11.10688219,166.25,166.2,31.10688219]
[1730593464040,11.10688219,166.24,166.19,31.10688219]
[1730593464239,11.10688219,166.24,166.21,20.0]
[1730593465058,11.10688219,166.22,166.18,20.0]
[1730593465265,11.10688219,166.21,166.19,20.43]
[1730593465848,11.10688219,166.21,166.17,20.0]
[1730593466268,11.10688219,166.21,166.18,0.43]
[1730593466647,11.10688219,166.21,166.17,20.0]
[1730593471468,11.10688219,166.2,166.15,31.10688219]
[1730593471662,11.10688219,166.2,166.17,20.0]
[1730593474365,11.10688219,166.21,166.17,20.0]
[1730593475352,11.10688219,166.22,166.17,31.10688219]
[1730593477761,11.10688219,166.23,166.18,11.10688219]
[1730593478368,11.10688219,166.24,166.19,54.88376619]
[1730593478675,11.10688219,166.25,166.2,20.0]
[1730593479246,11.10688219,166.25,166.2,31.10688219]
[1730593482672,11.10688219,166.24,166.2,20.0]
[1730593491075,11.10688219,166.21,166.18,20.0]
[1730593491377,11.10688219,166.2,166.19,0.43]
[1730593491888,11.10688219,166.2,166.18,23.776884]
[1730593497484,11.10688219,166.21,166.18,23.776884]
[1730593500501,11.10688219,166.2,166.15,31.10688219]
[1730593500678,6.0158,166.23,166.16,0.43]
[1730593500679,11.10688219,166.19,166.16,0.43]
[1730593500877,11.10688219,166.17,166.16,0.43]
[1730593501880,11.10688219,166.18,166.14,0.3082641]
[1730593502079,11.10688219,166.18,166.14,0.7382641]
[1730593502280,6.0161,166.22,166.14,11.84514629]
[1730593502281,11.10688219,166.19,166.14,11.84514629]
[1730593502896,11.10688219,166.19,166.14,11.41514629]
[1730593505506,11.10688219,166.19,166.14,0.3082641]
[1730593506001,11.10688219,166.18,166.14,0.3082641]
[1730593508982,11.10688219,166.17,166.14,0.3082641]
[1730593510987,6.6564,166.23,166.14,0.3082641]
[1730593510988,11.10688219,166.18,166.14,0.3082641]
[1730593511707,11.10688219,166.17,166.14,0.3082641]
[1730593512906,6.6564,166.23,166.14,0.3082641]
[1730593512907,11.10688219,166.18,166.14,0.3082641]
[1730593513088,11.10688219,166.19,166.14,11.41514629]
[1730593515987,11.10688219,166.19,166.14,0.3082641]
[1730593516201,11.10688219,166.21,166.16,11.10688219]
[1730593516589,21.3947,166.28,166.16,11.10688219]
[1730593516590,11.10688219,166.22,166.17,11.10688219]
[1730593517100,11.10688219,166.21,166.17,43.776884]
[1730593523900,11.10688219,166.22,166.17,54.88376619]
[1730593526014,11.10688219,166.24,166.19,31.10688219]
[1730593526314,11.10688219,166.25,166.19,31.10688219]
[1730593528805,11.10688219,166.24,166.19,31.10688219]
[1730593532592,11.10688219,166.27,166.21,11.10688219]
[1730593533112,11.10688219,166.27,166.22,23.776884]
[1730593533299,11.10688219,166.27,166.22,11.10688219]
[1730593533495,11.10688219,166.27,166.21,31.10688219]
[1730593533697,11.10688219,166.26,166.22,23.776884]
[1730593534218,11.10688219,166.27,166.22,23.776884]
[1730593534508,11.10688219,166.26,166.22,23.776884]
[1730593535614,11.10688219,166.26,166.21,31.10688219]
[1730593535814,11.10688219,166.25,166.21,20.0]
[1730593540205,11.10688219,166.26,166.21,31.10688219]
[1730593540406,11.10688219,166.25,166.2,11.10688219]
[1730593540705,11.10688219,166.25,166.21,20.0]
[1730593544726,11.10688219,166.26,166.21,11.10688219]
[1730593546418,11.10688219,166.25,166.21,43.776884]
[1730593547123,11.10688219,166.26,166.21,54.88376619]
[1730593547716,11.10688219,166.25,166.21,43.776884]
[1730593549626,11.10688219,166.26,166.21,54.88376619]
[1730593549933,15.1433,166.3,166.21,54.88376619]
[1730593549934,11.10688219,166.3,166.24,11.10688219]
[1730593550147,11.10688219,166.3,166.25,20.0]
[1730593550340,11.10688219,166.29,166.25,20.0]
[1730593550828,11.10688219,166.29,166.24,43.776884]
[1730593551027,11.10688219,166.3,166.25,11.10688219]
[1730593551214,6.0131,166.31,166.24,54.88376619]
[1730593551215,11.10688219,166.29,166.24,54.88376619]
[1730593554936,6.1594,166.32,166.24,20.0]
[1730593554937,11.10688219,166.27,166.24,20.0]
[1730593555123,11.10688219,166.27,166.23,20.0]
[1730593557533,11.10688219,166.25,166.21,23.776884]
[1730593557841,11.10688219,166.24,166.2,23.776884]
[1730593558017,11.10688219,166.25,166.2,34.88376619]
[1730593559123,11.10688219,166.25,166.21,20.0]
[1730593559424,11.10688219,166.26,166.21,31.10688219]
[1730593559624,6.0138,166.29,166.21,31.10688219]
[1730593559625,11.10688219,166.27,166.21,31.10688219]
[1730593559822,11.10688219,166.27,166.22,23.776884]
[1730593560135,11.10688219,166.28,166.23,11.10688219]
[1730593560837,11.10688219,166.27,166.23,20.0]
[1730593564124,11.10688219,166.26,166.23,20.0]
[1730593566429,11.10688219,166.27,166.23,20.0]
[1730593576045,11.10688219,166.28,166.23,20.0]
[1730593576353,50.58692876,166.32,166.23,20.0]
[1730593576354,11.10688219,166.29,166.24,11.10688219]
[1730593577628,11.10688219,166.28,166.23,20.0]
[1730593580046,11.10688219,166.3,166.25,31.10688219]
[1730593582436,11.10688219,166.29,166.25,20.0]
[1730593587946,11.10688219,166.3,166.25,31.10688219]
[1730593590053,11.10688219,166.3,166.26,23.776884]
[1730593600542,11.10688219,166.31,166.26,34.88376619]
[1730593600863,11.10688219,166.33,166.28,11.10688219]
[1730593602144,6.0116,166.35,166.27,31.10688219]
[1730593602145,11.10688219,166.32,166.27,31.10688219]
[1730593602362,11.10688219,166.32,166.28,23.776884]
[1730593602872,11.10688219,166.33,166.28,34.88376619]
[1730593606178,11.10688219,166.32,166.26,11.10688219]
[1730593606479,0.2,166.38,166.23,15.0929]
[1730593606480,11.10688219,166.3,166.27,20.0]
[1730593606780,11.10688219,166.3,166.25,23.776884]
[1730593607171,11.10688219,166.29,166.25,23.776884]
[1730593607365,11.10688219,166.28,166.24,23.776884]
[1730593607987,11.10688219,166.28,166.23,26.19978219]
[1730593608687,11.10688219,166.3,166.24,11.10688219]
[1730593609675,11.10688219,166.3,166.25,20.0]
[1730593612372,11.10688219,166.29,166.25,20.0]
[1730593618473,11.10688219,166.3,166.25,20.0]
[1730593620384,11.10688219,166.28,166.24,20.0]
[1730593621291,44.42752876,166.32,166.24,20.0]
[1730593621292,11.10688219,166.27,166.24,20.0]
[1730593621492,11.10688219,166.26,166.22,20.0]
[1730593621882,11.10688219,166.27,166.24,20.0]
[1730593628008,11.10688219,166.28,166.24,20.0]
[1730593628176,11.10688219,166.29,166.24,20.0]
[1730593631101,11.10688219,166.29,166.24,31.10688219]
[1730593631301,11.10688219,166.3,166.24,31.10688219]
[1730593631903,11.10688219,166.29,166.24,31.10688219]
[1730593632287,11.10688219,166.29,166.24,20.0]
[1730593633086,11.10688219,166.28,166.24,20.0]
[1730593633695,11.10688219,166.27,166.24,20.0]
[1730593633903,11.10688219,166.25,166.22,20.0]
[1730593634086,11.10688219,166.25,166.21,20.0]
[1730593634406,11.10688219,166.25,166.23,20.0]
[1730593636307,11.10688219,166.26,166.23,20.0]
[1730593639997,11.10688219,166.26,166.2,11.10688219]
[1730593639998,11.10688219,166.26,166.21,11.10688219]
[1730593640206,11.10688219,166.25,166.22,20.0]
[1730593640383,11.10688219,166.26,166.22,20.0]
[1730593642908,11.10688219,166.28,166.22,31.10688219]
[1730593643793,11.10688219,166.28,166.23,11.10688219]
[1730593645325,11.10688219,166.28,166.22,11.10688219]
[1730593645612,11.10688219,166.28,166.23,20.0]
[1730593647596,11.10688219,166.27,166.23,20.0]
[1730593648301,11.10688219,166.3,166.25,20.0]
[1730593648796,11.10688219,166.31,166.25,31.10688219]
[1730593648987,11.10688219,166.3,166.25,31.10688219]
[1730593649190,11.10688219,166.3,166.25,20.0]
[1730593653111,11.10688219,166.31,166.26,23.776884]
[1730593653309,11.10688219,166.32,166.27,31.10688219]
[1730593654147,11.10688219,166.33,166.27,31.10688219]
[1730593654920,11.10688219,166.33,166.28,34.88376619]
[1730593655098,11.10688219,166.34,166.28,34.88376619]
[1730593656613,11.10688219,166.33,166.28,34.88376619]
[1730593657298,11.10688219,166.34,166.29,11.10688219]
[1730593657504,11.10688219,166.35,166.3,11.10688219]
[1730593659421,11.10688219,166.34,166.29,31.10688219]
[1730593659597,11.10688219,166.33,166.29,20.0]
[1730593659797,11.10688219,166.32,166.29,20.0]
[1730593660738,21.6488,166.39,166.28,23.776884]
[1730593660739,11.10688219,166.31,166.28,23.776884]
[1730593660928,11.10688219,166.32,166.28,20.0]
[1730593661424,11.10688219,166.31,166.28,20.0]
[1730593663123,11.10688219,166.32,166.28,20.0]
[1730593663423,11.10688219,166.33,166.28,20.0]
[1730593663611,11.10688219,166.34,166.28,31.10688219]
[1730593665114,11.10688219,166.33,166.28,31.10688219]
[1730593667411,11.10688219,166.33,166.28,20.0]
[1730593668414,11.10688219,166.31,166.28,20.0]
[1730593668721,11.10688219,166.3,166.28,20.0]
[1730593669632,11.10688219,166.3,166.25,11.10688219]
[1730593669633,11.10688219,166.3,166.26,20.0]
[1730593672840,11.10688219,166.31,166.26,11.10688219]
[1730593673026,11.10688219,166.31,166.27,20.0]
[1730593679036,11.10688219,166.32,166.27,11.10688219]
[1730593679219,11.10688219,166.32,166.28,20.0]
[1730593679420,10.60688219,166.32,166.28,20.0]
[1730593680841,10.60688219,166.32,166.26,11.10688219]
[1730593681046,10.60688219,166.32,166.27,20.0]
[1730593681425,10.60688219,166.32,166.27,11.10688219]
[1730593681625,10.60688219,166.32,166.28,20.0]
[1730593682248,10.60688219,166.32,166.26,11.10688219]
[1730593682617,10.60688219,166.32,166.27,20.0]
[1730593684322,10.60688219,166.32,166.27,11.10688219]